bitfinex-derivatives/quotes_BTCF0:USTF0_20210706
["timestamp","ask_amount","ask_price","bid_price","bid_amount"]
[1625567202332,0.01713045,33940.0,33939.0,0.36228728]
[1625567202433,0.01713045,33940.0,33939.0,0.84343816]
[1625567202534,0.01713045,33940.0,33939.0,0.75827088]
[1625567203185,0.07613045,33940.0,33939.0,0.48115088]
[1625567203436,0.13513045,33940.0,33939.0,0.48115088]
[1625567203536,0.82617269,33940.0,33939.0,0.48115088]
[1625567203736,1.86269254,33940.0,33939.0,0.48115088]
[1625567203986,3.0719638,33940.0,33939.0,0.48115088]
[1625567204687,4.48903884,33940.0,33939.0,0.48115088]
[1625567204887,4.48903884,33940.0,33933.0,1.42075088]
[1625567204988,4.77711884,33940.0,33933.0,1.42075088]
[1625567205187,0.6912154,33934.0,33933.0,1.42075088]
[1625567205387,0.7502154,33934.0,33933.0,1.42075088]
[1625567205488,0.82634988,33934.0,33933.0,1.42075088]
[1625567205691,0.76734988,33934.0,33933.0,1.42075088]
[1625567205938,0.07613448,33934.0,33933.0,1.42075088]
[1625567206238,0.59457347,33934.0,33933.0,1.42075088]
[1625567206395,0.59457347,33934.0,33933.0,1.66132632]
[1625567206397,0.07613448,33934.0,33933.0,1.66132632]
[1625567206689,0.10369011,33934.0,33933.0,1.66132632]
[1625567206890,0.07613448,33934.0,33933.0,1.66132632]
[1625567207290,0.01713448,33934.0,33933.0,1.66132632]
[1625567208044,0.01713448,33934.0,33933.0,1.72032632]
[1625567208443,0.01713329,33935.0,33933.0,1.72032632]
[1625567208543,0.01713329,33935.0,33933.0,2.01258632]
[1625567208794,0.01713329,33935.0,33933.0,2.21258632]
[1625567210297,0.07613329,33935.0,33933.0,2.21258632]
[1625567210497,0.1627367,33935.0,33933.0,2.21258632]
[1625567210598,0.1037367,33935.0,33933.0,2.21258632]
[1625567210697,0.01713298,33934.0,33933.0,2.21258632]
[1625567211502,0.01713298,33934.0,33933.0,2.01258632]
[1625567211601,0.07613298,33934.0,33933.0,2.01258632]
[1625567211700,0.07613298,33934.0,33933.0,1.72032632]
[1625567211802,0.16274793,33934.0,33933.0,1.72032632]
[1625567211999,0.16274793,33934.0,33933.0,1.66132632]
[1625567212399,0.16274793,33934.0,33933.0,1.72032632]
[1625567212502,0.10374793,33934.0,33933.0,1.72032632]
[1625567212601,0.10374793,33934.0,33933.0,1.92032632]
[1625567213151,0.10374793,33934.0,33933.0,1.72032632]
[1625567213251,0.16274793,33934.0,33933.0,1.72032632]
[1625567213351,0.10374793,33934.0,33933.0,1.72032632]
[1625567213452,0.16274793,33934.0,33933.0,1.66132632]
[1625567213652,0.10374793,33934.0,33933.0,1.66132632]
[1625567214256,0.01713298,33934.0,33933.0,1.66132632]
[1625567214457,0.1038059,33934.0,33933.0,1.66132632]
[1625567214809,0.1628059,33934.0,33933.0,1.66132632]
[1625567214911,0.07613298,33934.0,33933.0,1.66132632]
[1625567215217,1.34666986,33934.0,33933.0,1.66132632]
[1625567215410,3.59651252,33934.0,33933.0,1.66132632]
[1625567215662,4.98103857,33934.0,33933.0,1.66132632]
[1625567216512,5.22161401,33934.0,33933.0,1.66132632]
[1625567217817,5.16261401,33934.0,33933.0,1.66132632]
[1625567218216,3.77808796,33934.0,33933.0,1.66132632]
[1625567219921,3.76095498,33934.0,33933.0,1.66132632]
[1625567220223,3.52037954,33934.0,33933.0,1.66132632]
[1625567221474,2.30893911,33934.0,33933.0,1.66132632]
[1625567222976,3.52207322,33934.0,33933.0,1.66132632]
[1625567223277,2.30893911,33934.0,33933.0,1.66132632]
[1625567225129,3.52302475,33934.0,33933.0,1.66132632]
[1625567225430,3.54016637,33934.0,33933.0,1.66132632]
[1625567225631,3.48116637,33934.0,33933.0,1.74641259]
[1625567225779,3.54016637,33934.0,33933.0,1.74641259]
[1625567225879,2.26708073,33934.0,33933.0,1.74641259]
[1625567226631,2.26708073,33934.0,33933.0,2.17172278]
[1625567226730,2.26708073,33934.0,33933.0,2.23072278]
[1625567226831,1.2286785,33934.0,33933.0,2.91095025]
[1625567227031,1.2286785,33934.0,33933.0,3.93183345]
[1625567227331,0.08694064,33934.0,33933.0,6.48527212]
[1625567227432,0.08694064,33934.0,33933.0,6.74427212]
[1625567227535,0.08693792,33935.0,33933.0,6.74427212]
[1625567227783,0.52177618,33936.0,33933.0,6.74427212]
[1625567227784,0.08793555,33936.0,33934.0,4.75726783]
[1625567227886,0.08793555,33936.0,33935.0,0.2]
[1625567228085,0.08793555,33936.0,33935.0,3.71626649]
[1625567228189,0.08793555,33936.0,33935.0,8.66835194]
[1625567228286,0.08793555,33936.0,33935.0,10.02724895]
[1625567228287,0.001,33936.0,33935.0,10.02724895]
[1625567228386,0.001,33936.0,33935.0,9.96824895]
[1625567228484,0.001,33936.0,33935.0,10.20882439]
[1625567228584,0.08792737,33936.0,33935.0,10.20882439]
[1625567228685,0.08792737,33936.0,33935.0,10.00882439]
[1625567228786,0.08792737,33936.0,33935.0,8.64992738]
[1625567229241,0.001,33936.0,33935.0,10.01117325]
[1625567229338,0.001,33936.0,33935.0,10.21117325]
[1625567229739,0.001,33936.0,33935.0,10.27017325]
[1625567229839,0.001,33936.0,33935.0,10.01117325]
[1625567230290,0.001,33936.0,33935.0,10.0076878]
[1625567230993,0.001,33936.0,33935.0,10.2076878]
[1625567231095,0.52226282,33936.0,33935.0,10.2076878]
[1625567231644,0.52226282,33936.0,33935.0,10.27017319]
[1625567231746,0.52226282,33936.0,33935.0,10.21117319]
[1625567231847,0.001,33936.0,33935.0,10.21117319]
[1625567231945,0.001,33936.0,33935.0,10.27017319]
[1625567232147,0.08801935,33936.0,33935.0,10.27017319]
[1625567232295,0.08801935,33936.0,33935.0,10.21117319]
[1625567232496,0.08801935,33936.0,33935.0,10.27017319]
[1625567232596,0.001,33936.0,33935.0,10.27017319]
[1625567232697,0.001,33936.0,33935.0,10.21117319]
[1625567232946,0.001,33936.0,33935.0,10.27017319]
[1625567233747,0.52113608,33939.0,33935.0,10.27017319]
[1625567234046,0.52113608,33939.0,33936.0,0.00348516]
[1625567234147,0.52113608,33939.0,33936.0,0.12148516]
[1625567234248,0.52113608,33939.0,33938.0,4.74346872]
[1625567234349,0.52113608,33939.0,33938.0,4.80246872]
[1625567234449,1.2157793,33940.0,33938.0,4.80246872]
[1625567234548,1.2157793,33940.0,33939.0,0.78574088]
[1625567234648,1.2157793,33940.0,33939.0,0.75774088]
[1625567234798,0.52099482,33940.0,33939.0,4.14409252]
[1625567235251,1.21756618,33941.0,33939.0,4.14409252]
[1625567235504,1.21756618,33941.0,33940.0,3.37556829]
[1625567235606,1.21756618,33941.0,33940.0,3.43456829]
[1625567235806,0.52296616,33941.0,33940.0,3.43456829]
[1625567235956,2.25932289,33941.0,33940.0,2.25311939]
[1625567236205,1.21754357,33941.0,33940.0,2.25311939]
[1625567236555,1.21754357,33941.0,33940.0,2.49369483]
[1625567236658,1.21754357,33941.0,33940.0,2.55269483]
[1625567236756,1.21754357,33941.0,33940.0,2.49369483]
[1625567236854,1.21754357,33941.0,33940.0,2.55269483]
[1625567236959,0.87025892,33941.0,33940.0,3.73151269]
[1625567237608,0.87025892,33941.0,33940.0,3.67251269]
[1625567237708,1.21737096,33941.0,33940.0,2.49369483]
[1625567237909,0.52296616,33941.0,33940.0,3.67131644]
[1625567238209,0.52296616,33941.0,33940.0,2.49369483]
[1625567238309,0.52096616,33941.0,33940.0,2.49369483]
[1625567238410,0.34721203,33941.0,33940.0,3.66863595]
[1625567238661,0.34720343,33942.0,33940.0,3.66863595]
[1625567238861,0.34720343,33942.0,33941.0,0.2]
[1625567238962,0.86991682,33943.0,33941.0,3.55319211]
[1625567239062,0.86991682,33943.0,33941.0,3.67119211]
[1625567239160,0.86991682,33943.0,33942.0,2.37708588]
[1625567239260,0.86991682,33943.0,33942.0,2.43608588]
[1625567239463,0.34919843,33943.0,33942.0,2.43608588]
[1625567239761,0.002,33943.0,33942.0,3.60398518]
[1625567240162,0.002,33943.0,33942.0,3.66298518]
[1625567240261,0.002,33943.0,33942.0,3.60398518]
[1625567240362,0.002,33943.0,33942.0,3.40398518]
[1625567240463,0.002,33943.0,33942.0,3.46298518]
[1625567240562,0.002,33943.0,33942.0,3.64456062]
[1625567241163,0.002,33943.0,33942.0,2.47666132]
[1625567241413,0.002,33943.0,33942.0,2.67666132]
[1625567241814,0.002,33943.0,33942.0,2.41766132]
[1625567242115,1.21650317,33943.0,33942.0,1.07566839]
[1625567242415,1.21650317,33943.0,33942.0,0.24057544]
[1625567242416,2.25723867,33943.0,33942.0,0.24057544]
[1625567245720,2.25723867,33943.0,33942.0,0.29957544]
[1625567247023,2.34553867,33943.0,33942.0,0.38767544]
[1625567247123,2.25723867,33943.0,33942.0,0.29957544]
[1625567247323,2.25523867,33943.0,33942.0,0.29957544]
[1625567247674,2.27236788,33943.0,33942.0,0.29957544]
[1625567248429,2.27236788,33943.0,33942.0,0.32987544]
[1625567248627,2.27236788,33943.0,33942.0,0.24057544]
[1625567248777,2.27236788,33943.0,33942.0,0.29957544]
[1625567249077,2.25523867,33943.0,33942.0,0.29957544]
[1625567249328,1.21450317,33943.0,33942.0,0.29957544]
[1625567249578,1.23163191,33943.0,33942.0,0.29957544]
[1625567249777,1.23163191,33943.0,33942.0,0.63045545]
[1625567249878,1.21450317,33943.0,33942.0,0.63045545]
[1625567250179,0.52052614,33943.0,33942.0,0.63045545]
[1625567250430,1.21418959,33943.0,33942.0,0.63045545]
[1625567250983,1.23131845,33943.0,33942.0,0.29957544]
[1625567251182,1.21418959,33943.0,33942.0,0.29957544]
[1625567251381,1.21418959,33943.0,33942.0,0.24057544]
[1625567251482,1.2313185,33943.0,33942.0,0.24057544]
[1625567252438,0.88453647,33943.0,33942.0,1.06989719]
[1625567252636,0.36401033,33943.0,33942.0,0.73816849]
[1625567252937,0.34688142,33943.0,33942.0,0.73816849]
[1625567253138,1.21381564,33944.0,33942.0,1.40010727]
[1625567253139,0.86712607,33944.0,33942.0,1.40010727]
[1625567253237,0.86712607,33944.0,33942.0,1.45910727]
[1625567253438,0.86712607,33944.0,33943.0,0.82745694]
[1625567253539,0.86712607,33944.0,33943.0,0.88645694]
[1625567254087,0.86712607,33944.0,33943.0,0.38998278]
[1625567254388,0.52022615,33944.0,33943.0,0.38998278]
[1625567254587,0.86710176,33944.0,33943.0,0.38998278]
[1625567254687,0.86710176,33944.0,33943.0,0.33098278]
[1625567254838,0.52022615,33944.0,33943.0,0.33098278]
[1625567255089,1.21387576,33944.0,33943.0,0.33098278]
[1625567255340,0.52022615,33944.0,33943.0,0.33098278]
[1625567255640,1.23099009,33944.0,33943.0,0.33098278]
[1625567255840,0.88425561,33944.0,33943.0,0.88653029]
[1625567255939,0.88425561,33944.0,33943.0,0.82753029]
[1625567256093,0.53735047,33944.0,33943.0,0.38998278]
[1625567256190,0.53735047,33944.0,33943.0,0.39346759]
[1625567256490,0.53735047,33944.0,33943.0,0.38998278]
[1625567257141,1.23098026,33944.0,33943.0,0.38998278]
[1625567259096,1.23098026,33944.0,33943.0,0.33098278]
[1625567259396,1.23098026,33944.0,33942.0,0.57187928]
[1625567259497,1.57286026,33944.0,33942.0,0.57187928]
[1625567259602,1.21392498,33943.0,33942.0,0.24057544]
[1625567259696,1.21392498,33943.0,33942.0,0.29957544]
[1625567259796,1.21392498,33943.0,33942.0,0.24057544]
[1625567259898,2.27144098,33943.0,33942.0,0.24057544]
[1625567263206,3.48521349,33943.0,33942.0,0.24057544]
[1625567263307,3.54421349,33943.0,33942.0,0.24057544]
[1625567263406,4.93143293,33943.0,33942.0,0.24057544]
[1625567263505,4.99043293,33943.0,33942.0,0.24057544]
[1625567263709,6.58601372,33943.0,33942.0,0.24057544]
[1625567264062,6.58601372,33943.0,33938.0,0.001]
[1625567264464,4.85626063,33939.0,33938.0,0.001]
[1625567264562,4.91526063,33939.0,33938.0,0.001]
[1625567264662,4.97426063,33939.0,33938.0,0.001]
[1625567264762,5.71311836,33939.0,33938.0,0.001]
[1625567264965,5.7479771,33939.0,33938.0,0.001]
[1625567265174,7.30915471,33939.0,33938.0,0.001]
[1625567266570,7.27429597,33939.0,33938.0,0.001]
[1625567269427,7.21529597,33939.0,33938.0,0.001]
[1625567269727,7.27429597,33939.0,33938.0,0.001]
[1625567272887,7.03372053,33939.0,33938.0,0.001]
[1625567272986,5.47254292,33939.0,33938.0,0.001]
[1625567273137,7.03308846,33939.0,33938.0,0.001]
[1625567273386,5.47254292,33939.0,33938.0,0.001]
[1625567273686,7.03309824,33939.0,33938.0,0.001]
[1625567274588,5.47254292,33939.0,33938.0,0.001]
[1625567276642,5.41354292,33939.0,33938.0,0.001]
[1625567277393,5.41354292,33939.0,33937.0,0.24057544]
[1625567277699,4.87328226,33938.0,33937.0,0.24057544]
[1625567277944,4.93228226,33938.0,33937.0,0.24057544]
[1625567278495,4.99128226,33938.0,33937.0,0.24057544]
[1625567278599,5.22936226,33938.0,33937.0,0.24057544]
[1625567283556,6.7904262,33938.0,33937.0,0.24057544]
[1625567284706,6.77329564,33938.0,33937.0,0.24057544]
[1625567285006,6.7904278,33938.0,33937.0,0.24057544]
[1625567289413,5.22936386,33938.0,33937.0,0.24057544]
[1625567289917,6.78983611,33938.0,33937.0,0.24057544]
[1625567290165,5.22936386,33938.0,33937.0,0.24057544]
[1625567291620,6.82452246,33938.0,33937.0,0.24057544]
[1625567292722,5.2642245,33938.0,33937.0,0.24057544]
[1625567294130,6.82436055,33938.0,33937.0,0.24057544]
[1625567294481,5.2642245,33938.0,33937.0,0.24057544]
[1625567294582,5.2642245,33938.0,33935.0,0.24057544]
[1625567294683,6.82430191,33938.0,33935.0,0.24057544]
[1625567294990,6.65496682,33936.0,33935.0,0.24057544]
[1625567295182,11.53256682,33936.0,33935.0,0.24057544]
[1625567295382,11.53256682,33936.0,33934.0,0.001]
[1625567295483,6.41361975,33935.0,33934.0,0.001]
[1625567295684,6.53161975,33935.0,33934.0,0.001]
[1625567295786,6.58363139,33935.0,33934.0,0.001]
[1625567296986,6.82420683,33935.0,33934.0,0.001]
[1625567297187,6.82420683,33935.0,33929.0,0.002]
[1625567297289,0.059,33932.0,33929.0,0.002]
[1625567297390,0.059,33932.0,33924.0,0.003]
[1625567297391,6.76520683,33935.0,33924.0,0.003]
[1625567297392,0.057,33929.0,33924.0,0.003]
[1625567297489,0.1463,33929.0,33924.0,0.003]
[1625567297595,0.42555,33929.0,33924.0,0.003]
[1625567297688,0.05202231,33928.0,33924.0,0.003]
[1625567297889,6.41236917,33925.0,33924.0,0.003]
[1625567297988,0.059,33924.0,33921.0,0.24057544]
[1625567298189,6.41276711,33922.0,33919.0,0.004]
[1625567298288,6.83752711,33922.0,33919.0,0.004]
[1625567298389,4.85319389,33920.0,33919.0,0.004]
[1625567298590,4.97119389,33920.0,33917.0,0.24057544]
[1625567298691,4.98834524,33920.0,33917.0,0.24057544]
[1625567298791,4.98834524,33920.0,33910.0,0.50547927]
[1625567298889,4.98834524,33920.0,33909.0,0.50570881]
[1625567298890,4.85339915,33918.0,33909.0,0.50570881]
[1625567298992,0.72172632,33915.0,33910.0,0.24057544]
[1625567299089,0.72172632,33915.0,33909.0,0.50570881]
[1625567299090,0.054,33914.0,33909.0,0.50570881]
[1625567299193,0.113,33914.0,33908.0,0.16864642]
[1625567299392,0.113,33914.0,33906.0,1.4211004]
[1625567299393,0.69240833,33909.0,33906.0,0.91516113]
[1625567299494,2.2502838,33909.0,33906.0,0.24057544]
[1625567299591,2.3682838,33909.0,33906.0,0.24057544]
[1625567299693,0.86565303,33907.0,33906.0,0.24057544]
[1625567299795,1.17883303,33907.0,33906.0,0.24057544]
[1625567299894,1.5839648,33907.0,33906.0,0.24057544]
[1625567300297,5.5761648,33907.0,33906.0,0.24057544]
[1625567300395,5.23004126,33907.0,33906.0,0.24057544]
[1625567300495,5.23004126,33907.0,33903.0,0.24057544]
[1625567300597,5.57628499,33907.0,33903.0,0.24057544]
[1625567300897,0.86582248,33905.0,33903.0,0.24057544]
[1625567300998,1.46497336,33905.0,33903.0,0.24057544]
[1625567301097,0.17326982,33904.0,33903.0,0.24057544]
[1625567301196,0.23226982,33904.0,33903.0,0.24057544]
[1625567301295,0.29126982,33904.0,33903.0,0.24057544]
[1625567301497,0.118,33904.0,33903.0,0.24057544]
[1625567302752,0.059,33904.0,33903.0,0.24057544]
[1625567303205,0.118,33904.0,33903.0,0.24057544]
[1625567303903,0.059,33904.0,33903.0,0.24057544]
[1625567305111,0.059,33904.0,33903.0,5.51997544]
[1625567306615,0.059,33904.0,33903.0,5.75190544]
[1625567307117,0.059,33904.0,33903.0,5.99248088]
[1625567307414,0.06,33904.0,33903.0,5.99248088]
[1625567307818,0.06,33904.0,33903.0,6.05148088]
[1625567308165,0.06,33904.0,33903.0,5.99248088]
[1625567308715,0.06,33904.0,33903.0,6.05148088]
[1625567308816,0.06,33904.0,33903.0,0.77208088]
[1625567309117,0.06,33904.0,33903.0,0.71308088]
[1625567309970,0.06,33904.0,33903.0,0.48115088]
[1625567310771,0.06,33904.0,33903.0,0.54015088]
[1625567311421,0.119,33904.0,33903.0,0.48115088]
[1625567312625,0.06,33904.0,33903.0,0.48115088]
[1625567312828,0.06,33904.0,33903.0,0.54015088]
[1625567314233,0.06,33904.0,33903.0,0.48115088]
[1625567317946,0.06,33904.0,33903.0,0.54015088]
[1625567319296,0.06,33904.0,33903.0,0.48115088]
[1625567319796,0.06,33904.0,33903.0,0.54015088]
[1625567320197,0.06,33904.0,33903.0,0.48115088]
[1625567320949,0.06,33904.0,33903.0,0.54015088]
[1625567322001,0.06,33904.0,33903.0,0.48115088]
[1625567324558,0.06,33904.0,33903.0,0.82961088]
[1625567325010,0.06,33904.0,33903.0,0.88861088]
[1625567325563,0.06,33904.0,33903.0,0.82961088]
[1625567325962,0.07717647,33904.0,33903.0,0.48115088]
[1625567327264,0.29856647,33904.0,33903.0,0.48115088]
[1625567328969,0.35756647,33904.0,33903.0,0.48115088]
[1625567329873,0.29856647,33904.0,33903.0,0.48115088]
[1625567333378,0.07717647,33904.0,33903.0,0.48115088]
[1625567333475,0.07717647,33904.0,33903.0,0.71942088]
[1625567333675,0.07717647,33904.0,33903.0,0.72290991]
[1625567333977,0.002,33909.0,33903.0,0.72290991]
[1625567334175,0.002,33909.0,33904.0,0.2]
[1625567334375,0.002,33909.0,33904.0,0.259]
[1625567334476,0.01711884,33908.0,33905.0,0.00348848]
[1625567334676,0.01711884,33908.0,33905.0,0.06248848]
[1625567334781,0.002,33909.0,33905.0,0.06248848]
[1625567335080,0.002,33909.0,33906.0,0.17035375]
[1625567335179,0.002,33909.0,33908.0,0.48115088]
[1625567335579,0.01911772,33909.0,33908.0,0.48115088]
[1625567335884,0.002,33909.0,33908.0,0.48115088]
[1625567336081,0.01911847,33909.0,33908.0,0.48115088]
[1625567337085,0.53742783,33909.0,33908.0,0.48115088]
[1625567337183,0.59642783,33909.0,33908.0,0.48115088]
[1625567337834,0.53742783,33909.0,33908.0,0.48115088]
[1625567338536,0.59642783,33909.0,33908.0,0.48115088]
[1625567338688,1.28757941,33909.0,33908.0,0.48115088]
[1625567338939,2.38314408,33909.0,33908.0,0.48115088]
[1625567339287,2.62371952,33909.0,33908.0,0.48115088]
[1625567340789,2.86755952,33909.0,33908.0,0.48115088]
[1625567341191,4.11231682,33909.0,33908.0,0.48115088]
[1625567341391,4.07742387,33909.0,33908.0,0.48115088]
[1625567341791,4.07542387,33909.0,33908.0,0.48115088]
[1625567341992,4.07542387,33909.0,33897.0,0.16884467]
[1625567342220,4.07542387,33909.0,33897.0,0.001]
[1625567342221,5.49309879,33909.0,33897.0,0.001]
[1625567342296,5.49309879,33909.0,33894.0,0.50509981]
[1625567342297,0.5,33908.0,33894.0,0.50509981]
[1625567342418,0.5,33908.0,33894.0,0.46159981]
[1625567342500,0.65290238,33908.0,33894.0,0.45009981]
[1625567342595,0.65290238,33908.0,33882.0,0.28662643]
[1625567342596,3.45799868,33895.0,33882.0,0.28662643]
[1625567342694,3.74216868,33895.0,33882.0,0.28662643]
[1625567342795,3.80116868,33895.0,33882.0,0.28662643]
[1625567342900,0.34596091,33883.0,33882.0,0.28662643]
[1625567342997,0.86481582,33883.0,33879.0,0.9618]
[1625567343097,0.92381582,33883.0,33879.0,0.9618]
[1625567343196,1.22305582,33883.0,33876.0,0.9982]
[1625567343308,1.21074767,33880.0,33876.0,0.9982]
[1625567343398,0.96230176,33877.0,33871.0,0.50792674]
[1625567343601,0.17313414,33872.0,33865.0,0.50895645]
[1625567343698,0.50743414,33872.0,33865.0,0.50895645]
[1625567343799,0.56643414,33872.0,33865.0,0.50895645]
[1625567343898,0.56643414,33872.0,33866.0,0.16961713]
[1625567343899,0.3933,33872.0,33866.0,0.16961713]
[1625567343998,0.4523,33872.0,33866.0,0.16961713]
[1625567344098,0.0171189,33871.0,33866.0,0.17310943]
[1625567344202,0.0171189,33871.0,33866.0,0.0034923]
[1625567344298,0.1351189,33871.0,33866.0,0.0034923]
[1625567344400,0.0761189,33871.0,33867.0,0.0034924]
[1625567344701,0.01711967,33870.0,33867.0,0.0034924]
[1625567344801,0.07611967,33870.0,33867.0,0.0034924]
[1625567344901,0.07611967,33870.0,33865.0,0.0034926]
[1625567345101,0.13511967,33870.0,33865.0,0.0034926]
[1625567345201,0.17290834,33868.0,33857.0,0.16957095]
[1625567345401,0.96230176,33858.0,33856.0,0.67828382]
[1625567345502,0.059,33857.0,33847.0,0.17021125]
[1625567345603,4.3737,33849.0,33847.0,0.17021125]
[1625567345708,4.3737,33849.0,33842.0,0.17053332]
[1625567345709,4.61547,33849.0,33842.0,0.17053332]
[1625567345804,4.67447,33849.0,33842.0,0.17053332]
[1625567345902,0.35977,33849.0,33842.0,0.17053332]
[1625567346006,0.01712719,33848.0,33842.0,0.17053332]
[1625567346304,0.01712719,33848.0,33843.0,0.00349423]
[1625567346403,0.13512719,33848.0,33843.0,0.00349423]
[1625567346504,5.31942719,33848.0,33843.0,0.00349423]
[1625567346602,5.43742719,33848.0,33843.0,0.00349423]
[1625567346708,5.31942719,33848.0,33843.0,0.00349423]
[1625567346803,0.01712837,33847.0,33834.0,0.00349471]
[1625567347006,0.13512837,33847.0,33834.0,0.00349471]
[1625567347303,0.48115088,33835.0,33832.0,0.24057544]
[1625567347505,0.77747088,33835.0,33832.0,0.44057544]
[1625567347604,0.77747088,33835.0,33833.0,4.9142]
[1625567348407,0.77747088,33835.0,33832.0,0.24057544]
[1625567348582,0.83647088,33835.0,33832.0,0.24057544]
[1625567348668,0.83647088,33835.0,33826.0,0.74959952]
[1625567348669,0.89547088,33835.0,33826.0,0.74959952]
[1625567348872,0.89547088,33835.0,33826.0,0.24057544]
[1625567349371,0.89547088,33835.0,33821.0,0.51012477]
[1625567349372,0.72172632,33827.0,33821.0,0.51012477]
[1625567349471,0.97794632,33827.0,33821.0,0.51012477]
[1625567349565,0.97794632,33827.0,33819.0,0.24057544]
[1625567349567,1.09594632,33827.0,33819.0,0.24057544]
[1625567350061,1.03694632,33827.0,33819.0,0.24057544]
[1625567350361,1.09594632,33827.0,33819.0,0.24057544]
[1625567350462,0.24177,33849.0,33819.0,0.24057544]
[1625567350569,1.80189508,33860.0,33819.0,0.49957544]
[1625567350665,1.80189508,33860.0,33819.0,0.85402544]
[1625567350666,0.118,33849.0,33819.0,0.85402544]
[1625567350765,1.14427852,33854.0,33819.0,0.85402544]
[1625567350864,1.14427852,33854.0,33820.0,0.5]
[1625567350963,1.14427852,33854.0,33821.0,0.2]
[1625567351065,1.14427852,33854.0,33821.0,0.2876]
[1625567351163,1.14427852,33854.0,33822.0,0.5]
[1625567351287,0.9124,33877.0,33822.0,0.5]
[1625567351288,1.19840801,33866.0,33832.0,0.50608445]
[1625567351375,1.19840801,33866.0,33865.0,0.96230176]
[1625567351490,1.19840801,33866.0,33865.0,1.29571176]
[1625567351568,0.9124,33877.0,33865.0,1.29571176]
[1625567351569,1.19862863,33870.0,33865.0,1.29571176]
[1625567351767,0.059,33870.0,33865.0,1.29571176]
[1625567351874,1.19852777,33872.0,33865.0,1.29571176]
[1625567351973,1.1983566,33875.0,33865.0,1.29571176]
[1625567351974,1.19748566,33870.0,33865.0,1.29571176]
[1625567352164,1.31548566,33870.0,33865.0,1.29571176]
[1625567352366,1.25648566,33870.0,33865.0,1.29571176]
[1625567352463,1.31548566,33870.0,33865.0,1.29571176]
[1625567352564,0.51321062,33868.0,33865.0,1.29571176]
[1625567352765,0.57221062,33868.0,33865.0,1.29571176]
[1625567352867,0.51323346,33867.0,33865.0,1.29571176]
[1625567352966,0.57223346,33867.0,33842.0,0.057]
[1625567353067,1.19754951,33866.0,33842.0,0.059]
[1625567353169,0.51325994,33866.0,33842.0,0.059]
[1625567353269,0.57225994,33866.0,33842.0,0.059]
[1625567353367,0.059,33866.0,33842.0,0.059]
[1625567353468,0.24057544,33854.0,33853.0,0.24057544]
[1625567353621,0.24057544,33854.0,33853.0,0.29957544]
[1625567353718,0.24057544,33854.0,33853.0,0.059]
[1625567353816,0.24057544,33854.0,33849.0,0.24057544]
[1625567353821,0.55468544,33854.0,33849.0,0.24057544]
[1625567353916,0.55468544,33854.0,33849.0,0.35857544]
[1625567354116,0.55468544,33854.0,33849.0,0.29957544]
[1625567354317,0.61368544,33854.0,33849.0,0.24057544]
[1625567354424,0.61368544,33854.0,33846.0,0.24057544]
[1625567354532,0.61368544,33854.0,33846.0,0.059]
[1625567354629,0.61368544,33854.0,33843.0,0.24057544]
[1625567354718,0.61368544,33854.0,33843.0,0.29957544]
[1625567355466,0.48115088,33844.0,33843.0,0.29957544]
[1625567355566,0.48115088,33844.0,33843.0,0.35857544]
[1625567355666,0.48115088,33844.0,33843.0,0.29957544]
[1625567355766,0.48115088,33844.0,33843.0,0.35857544]
[1625567357874,0.24057544,33854.0,33843.0,0.55857544]
[1625567357970,0.24057544,33854.0,33843.0,0.80111544]
[1625567359474,0.24057544,33854.0,33853.0,0.82065088]
[1625567359572,0.24057544,33854.0,33853.0,0.87965088]
[1625567359672,0.24057544,33854.0,33853.0,0.93865088]
[1625567360875,0.057,33872.0,33854.0,0.059]
[1625567360975,0.51192089,33875.0,33854.0,0.118]
[1625567361076,2.10616885,33877.0,33854.0,0.118]
[1625567361177,1.19436885,33877.0,33855.0,0.2]
[1625567361290,1.19436885,33877.0,33855.0,0.259]
[1625567361377,0.5118531,33882.0,33855.0,0.175]
[1625567361479,0.24057544,33872.0,33870.0,0.24057544]
[1625567361585,0.24057544,33872.0,33870.0,0.29957544]
[1625567361827,0.24057544,33872.0,33860.0,0.24057544]
[1625567361926,0.24057544,33872.0,33860.0,0.29957544]
[1625567362028,0.64152544,33872.0,33860.0,0.29957544]
[1625567362126,0.003,33864.0,33860.0,0.059]
[1625567362227,0.32328,33864.0,33853.0,0.24057544]
[1625567362328,0.38228,33864.0,33853.0,0.24057544]
[1625567362426,0.38228,33864.0,33853.0,0.29957544]
[1625567362527,0.44128,33864.0,33853.0,0.29957544]
[1625567362627,0.44128,33864.0,33853.0,0.24057544]
[1625567362778,5.50908,33864.0,33853.0,0.24057544]
[1625567363183,5.45008,33864.0,33853.0,0.24057544]
[1625567363476,0.48115088,33854.0,33853.0,0.24057544]
[1625567363577,0.78272088,33854.0,33853.0,0.24057544]
[1625567364130,0.78272088,33854.0,33853.0,0.29957544]
[1625567364328,0.78372088,33854.0,33853.0,0.29957544]
[1625567365028,0.48215088,33854.0,33853.0,0.29957544]
[1625567365444,0.48215088,33854.0,33853.0,0.35857544]
[1625567365445,0.001,33854.0,33853.0,0.35857544]
[1625567365544,0.001,33854.0,33853.0,0.59915088]
[1625567366231,0.24057544,33856.0,33854.0,0.058]
[1625567366335,0.24057544,33856.0,33854.0,0.41492]
[1625567366534,0.002,33859.0,33854.0,0.41492]
[1625567366636,0.002,33859.0,33856.0,0.059]
[1625567366737,0.002,33859.0,33856.0,0.118]
[1625567367338,0.001,33877.0,33856.0,0.118]
[1625567367539,0.001,33877.0,33871.0,0.24057544]
[1625567367540,0.24057544,33872.0,33871.0,0.24057544]
[1625567367737,0.24057544,33872.0,33871.0,0.58207544]
[1625567367837,0.24057544,33872.0,33871.0,0.64107544]
[1625567367989,0.24057544,33872.0,33871.0,0.70007544]
[1625567368090,0.24057544,33872.0,33871.0,0.64107544]
[1625567368892,0.24057544,33872.0,33871.0,0.70007544]
[1625567368991,0.24057544,33872.0,33871.0,0.64107544]
[1625567369489,0.24057544,33872.0,33871.0,0.70007544]
[1625567369588,0.24057544,33872.0,33871.0,0.64107544]
[1625567369988,0.24057544,33876.0,33871.0,0.64107544]
[1625567370850,0.24057544,33876.0,33871.0,0.58207544]
[1625567370949,0.24057544,33876.0,33871.0,0.24057544]
[1625567371148,0.29957544,33876.0,33871.0,0.24057544]
[1625567371544,0.47555544,33872.0,33871.0,0.24057544]
[1625567371651,0.53455544,33872.0,33871.0,0.24057544]
[1625567373201,0.53455544,33872.0,33865.0,0.24057544]
[1625567373504,0.24057544,33866.0,33865.0,0.24057544]
[1625567374402,0.24057544,33872.0,33865.0,0.24057544]
[1625567374605,0.35857544,33872.0,33865.0,0.24057544]
[1625567374703,0.29957544,33872.0,33865.0,0.24057544]